bitfinex/quotes_SOLUSD_20240816
["timestamp","ask_amount","ask_price","bid_price","bid_amount"]
[1723796361933,0.12549,144.36,144.33,0.8540329]
[1723796362233,0.12549,144.36,144.33,7.7823329]
[1723796362423,6.9263,144.38,144.33,7.7823329]
[1723796362736,37.50678,144.39,144.34,6.9279]
[1723796363030,20.0,144.39,144.35,20.0]
[1723796363200,26.925,144.41,144.36,6.927]
[1723796363405,6.9241,144.43,144.37,20.0]
[1723796363732,6.9241,144.43,144.37,26.9265]
[1723796364040,10.33,144.43,144.36,6.927]
[1723796364340,6.9248,144.41,144.36,6.927]
[1723796365111,0.12549,144.4,144.36,6.927]
[1723796366633,0.12549,144.4,144.37,6.9265]
[1723796366830,0.12549,144.41,144.37,6.9265]
[1723796369443,10.33,144.48,144.39,20.0]
[1723796369648,16.55247667,144.49,144.39,20.0]
[1723796369948,20.0,144.45,144.39,20.0]
[1723796370351,20.0,144.45,144.37,10.33]
[1723796370352,20.0,144.45,144.37,30.33]
[1723796370530,26.9231,144.45,144.37,30.33]
[1723796370736,26.9231,144.45,144.39,6.9255]
[1723796371246,0.12549,144.44,144.38,6.926]
[1723796371418,0.12549,144.44,144.36,20.0]
[1723796371419,6.9243,144.42,144.36,20.0]
[1723796371620,0.12549,144.41,144.36,20.0]
[1723796372122,0.12549,144.41,144.35,15.8253]
[1723796373238,0.12549,144.41,144.37,6.9265]
[1723796373625,7.17568,144.41,144.36,6.9269]
[1723796374240,0.25098,144.41,144.36,6.9269]
[1723796374548,0.25098,144.41,144.37,6.9266]
[1723796374865,0.12549,144.41,144.37,6.9266]
[1723796376021,0.12549,144.4,144.33,6.9171329]
[1723796376233,6.9262,144.38,144.33,7.7824329]
[1723796377056,7.05129,144.39,144.34,6.9279]
[1723796377436,0.12549,144.38,144.33,7.7824329]
[1723796377636,0.12549,144.38,144.33,27.7824329]
[1723796378546,0.12549,144.38,144.33,7.7824329]
[1723796378747,27.05169,144.38,144.33,7.7824329]
[1723796380568,6.9267,144.37,144.33,0.8540329]
[1723796380868,0.12549,144.36,144.33,0.8540329]
[1723796382164,37.38199,144.38,144.33,7.7825329]
[1723796383646,6.9267,144.37,144.33,0.8540329]
[1723796383943,0.12549,144.36,144.33,0.8540329]
[1723796384432,7.05269,144.36,144.33,0.8540329]
[1723796386435,0.12549,144.36,144.33,0.8540329]
[1723796386670,20.0,144.38,144.34,20.0]
[1723796387055,20.0,144.38,144.34,26.928]
[1723796389058,20.0,144.38,144.34,6.928]
[1723796390661,20.0,144.38,144.34,26.928]
[1723796391059,20.0,144.38,144.34,6.928]
[1723796393653,23.91449,144.39,144.35,20.0]
[1723796393870,7.67532621,144.43,144.35,20.0]
[1723796394072,7.67532621,144.43,144.37,20.0]
[1723796394270,6.9247,144.41,144.37,20.0]
[1723796394847,13.3922,144.43,144.38,6.9261]
[1723796395086,13.3922,144.43,144.37,20.0]
[1723796395087,6.4682,144.43,144.37,20.0]
[1723796395685,6.9245,144.42,144.37,26.9263]
[1723796396872,13.392,144.43,144.38,6.9261]
[1723796397081,6.4499,144.47,144.39,20.0]
[1723796397257,16.7799,144.47,144.39,20.0]
[1723796397469,6.9228,144.45,144.41,20.0]
[1723796398052,6.9228,144.45,144.4,6.9248]
[1723796398349,6.9223,144.46,144.41,6.9246]
[1723796401357,6.9228,144.45,144.4,6.9251]
[1723796401589,6.9228,144.45,144.4,26.9251]
[1723796401953,6.9228,144.45,144.4,6.9251]
[1723796402761,10.33,144.43,144.35,20.0]
[1723796402955,0.25098,144.42,144.35,20.0]
[1723796403285,20.25098,144.42,144.35,20.0]
[1723796403491,6.9247,144.41,144.36,6.9268]
[1723796403990,6.9265,144.38,144.33,7.7825329]
[1723796404196,0.12549,144.37,144.33,0.8540329]
[1723796405896,7.05129,144.39,144.34,20.0]
[1723796406093,7.05129,144.39,144.33,7.7824329]
[1723796406502,7.05129,144.39,144.34,20.0]
[1723796406704,7.05129,144.39,144.34,26.928]
[1723796406869,6.9258,144.39,144.35,20.0]
[1723796407278,6.9258,144.39,144.34,6.928]
[1723796407470,6.9258,144.39,144.35,20.0]
[1723796407671,20.0,144.4,144.35,20.0]
[1723796407888,26.9253,144.4,144.35,20.0]
[1723796408078,26.9253,144.4,144.35,6.9274]
[1723796408498,24.4253,144.4,144.35,6.9274]
[1723796410072,24.4253,144.4,144.35,26.9274]
[1723796410307,24.4253,144.4,144.35,6.9274]
[1723796410876,17.5,144.4,144.36,20.0]
[1723796411291,24.4254,144.4,144.36,20.0]
[1723796411490,17.5,144.4,144.36,26.9269]
[1723796411685,23.0684,144.43,144.37,6.9263]
[1723796411890,26.9243,144.42,144.37,6.9263]
[1723796412099,20.0,144.42,144.38,6.926]
[1723796412280,23.0683,144.43,144.38,6.926]
[1723796412877,23.0683,144.43,144.37,6.9264]
[1723796413186,6.9243,144.42,144.37,26.9264]
[1723796413382,6.9243,144.42,144.37,6.9265]
[1723796413575,0.12549,144.41,144.37,6.9265]
[1723796413788,6.9243,144.42,144.37,26.9265]
[1723796414015,16.1445,144.43,144.38,6.9261]
[1723796414016,23.0683,144.43,144.38,6.9261]
[1723796415200,7.05009,144.42,144.37,6.9264]
[1723796416521,7.05009,144.42,144.37,26.9264]
[1723796417113,7.05009,144.42,144.37,20.0]
[1723796417114,0.12549,144.42,144.37,20.0]
[1723796417283,0.12549,144.42,144.38,6.926]
[1723796417487,6.9247,144.41,144.36,6.9267]
[1723796417686,7.04989,144.42,144.37,6.9266]
[1723796418089,7.04989,144.42,144.37,26.9266]
[1723796418395,7.04989,144.42,144.37,6.9266]
[1723796418915,13.1315,144.45,144.4,6.9251]
[1723796419118,13.1315,144.45,144.39,20.0]
[1723796419119,26.9233,144.44,144.39,26.9255]
[1723796419416,20.0,144.44,144.4,6.9251]
[1723796419604,20.0,144.44,144.39,20.0]
[1723796419605,20.0,144.44,144.41,6.9246]
[1723796419796,6.2083,144.45,144.41,6.9246]
[1723796420113,6.2083,144.45,144.4,6.925]
[1723796420302,6.2083,144.45,144.41,6.9246]
[1723796420497,6.9224,144.46,144.41,6.9246]
[1723796420909,6.9228,144.45,144.4,26.925]
[1723796421084,31.82130239,144.47,144.41,6.9244]
[1723796421289,20.0,144.46,144.41,6.9244]
[1723796421519,26.9223,144.46,144.41,6.9244]
[1723796421944,20.0,144.46,144.42,6.9242]
[1723796422123,26.9223,144.46,144.41,6.9245]
[1723796422298,26.9223,144.46,144.36,15.284]
[1723796422299,0.12549,144.42,144.34,2.10793242]
[1723796422621,0.12549,144.42,144.32,2.71551789]
[1723796422622,7.05349,144.35,144.32,2.71551789]
[1723796422802,7.05349,144.35,144.24,25.83]
[1723796422803,0.12549,144.34,144.24,25.83]
[1723796423123,0.12549,144.34,144.25,7.24449544]
[1723796423329,7.17898,144.34,144.25,7.24449544]
[1723796423630,7.17898,144.34,144.25,47.24449544]
[1723796423803,7.17898,144.34,144.25,7.24449544]
[1723796425601,7.17898,144.34,144.25,27.24449544]
[1723796425821,7.17898,144.34,144.25,7.24449544]
[1723796426027,7.17898,144.34,144.25,27.24449544]
[1723796426191,7.17898,144.34,144.25,20.0]
[1723796426192,27.42996,144.34,144.25,20.0]
[1723796426397,7.17898,144.34,144.25,40.0]
[1723796426618,7.17898,144.34,144.25,20.0]
[1723796426821,7.17898,144.34,144.25,40.0]
[1723796427003,7.17898,144.34,144.25,20.0]
[1723796427408,7.05349,144.34,144.25,20.0]
[1723796428739,49.91636,144.34,144.24,7.24566179]
[1723796428940,75.74636,144.34,144.23,20.0]
[1723796429124,49.91636,144.34,144.22,7.2462623]
[1723796429326,49.91636,144.34,144.26,20.0]
[1723796429524,49.66538,144.34,144.26,20.0]
[1723796431326,49.66538,144.34,144.25,20.0]
[1723796431643,49.91636,144.34,144.25,20.0]
[1723796432650,49.79087,144.34,144.25,20.0]
[1723796433717,49.66538,144.34,144.25,20.0]
[1723796434759,49.79087,144.34,144.25,20.0]
[1723796435214,49.91636,144.34,144.25,20.0]
[1723796436749,49.79087,144.34,144.28,20.0]
[1723796437050,33.83127,144.34,144.25,20.0]
[1723796437222,33.70578,144.34,144.25,20.0]
[1723796438428,33.70578,144.34,144.28,20.0]
[1723796438635,27.17898,144.34,144.26,20.0]
[1723796439555,7.17898,144.34,144.26,20.0]
[1723796439857,7.17898,144.34,144.27,20.0]
[1723796440027,7.17898,144.34,144.29,20.0]
[1723796440230,7.17898,144.34,144.27,20.0]
[1723796440821,7.17898,144.34,144.24,45.83]
[1723796441042,7.17898,144.34,144.26,20.0]
[1723796443857,17.51898,144.34,144.26,20.0]
[1723796444059,37.76996,144.34,144.24,20.0]
[1723796446634,37.51898,144.34,144.24,20.0]
[1723796447053,37.76996,144.34,144.24,20.0]
[1723796449738,37.76996,144.34,144.23,17.58496238]
[1723796449968,37.76996,144.34,144.24,20.0]
[1723796450259,37.76996,144.34,144.23,17.58496238]
[1723796450560,37.76996,144.34,144.24,20.0]
[1723796451073,27.42996,144.34,144.23,7.24496238]
[1723796451236,6.931,144.28,144.21,21.6105]
[1723796451432,17.3226,144.32,144.21,21.6105]
[1723796451433,0.12549,144.27,144.21,21.6105]
[1723796451635,0.12549,144.27,144.24,6.9328]
[1723796451847,17.39609,144.29,144.24,6.9328]
[1723796452038,0.12549,144.28,144.24,6.9328]
[1723796452262,0.12549,144.27,144.21,15.0056]
[1723796452457,0.12549,144.27,144.23,6.933]
[1723796452661,7.05639,144.28,144.23,6.933]
[1723796453827,0.12549,144.27,144.23,6.933]
[1723796454054,0.12549,144.27,144.21,15.0056]
[1723796454355,7.05709,144.27,144.21,15.0056]
[1723796454555,0.12549,144.26,144.21,35.0056]
[1723796454755,0.12549,144.27,144.21,35.0056]
[1723796455736,7.30807,144.27,144.19,20.0]
[1723796455939,0.12549,144.26,144.19,20.0]
[1723796456152,0.12549,144.27,144.19,20.0]
[1723796456648,15.02208,144.28,144.21,20.0]
[1723796456844,6.9311,144.28,144.21,20.0]
[1723796457034,6.9311,144.28,144.19,10.34]
[1723796457035,17.2706,144.29,144.24,20.0]
[1723796457259,17.2706,144.29,144.21,20.0]
[1723796458049,10.34,144.29,144.24,20.0]
[1723796458260,22.4032,144.34,144.26,20.0]
[1723796458440,22.4032,144.34,144.27,20.0]
[1723796458642,17.2686,144.33,144.25,20.0]
[1723796459369,16.1591,144.34,144.25,20.0]
[1723796459566,6.9277,144.35,144.27,20.0]
[1723796459868,10.34,144.35,144.25,20.0]
[1723796460053,19.13868588,144.35,144.24,20.0]
[1723796460436,10.34,144.33,144.24,20.0]
[1723796460637,10.34,144.33,144.23,20.0]
[1723796460865,7.05469,144.32,144.23,20.0]
[1723796461040,0.12549,144.32,144.23,20.0]
[1723796461238,0.25098,144.32,144.27,20.0]
[1723796461677,10.34,144.33,144.27,20.0]
[1723796462035,0.12549,144.34,144.29,20.0]
[1723796462256,37.39349,144.34,144.25,20.0]
[1723796462500,37.39349,144.34,144.28,20.0]
[1723796462684,37.39349,144.34,144.24,50.34]
[1723796462868,37.39349,144.34,144.28,20.0]
[1723796463044,37.39349,144.34,144.24,30.34]
[1723796463045,37.39349,144.34,144.25,20.0]
[1723796463245,27.05349,144.34,144.25,20.0]
[1723796463451,10.46549,144.33,144.24,30.34]
[1723796463756,10.46549,144.33,144.25,20.0]
[1723796463948,10.46549,144.33,144.28,20.0]
[1723796464274,10.46549,144.33,144.24,10.34]
[1723796464275,10.46549,144.33,144.24,30.34]
[1723796464487,10.46549,144.33,144.28,20.0]
[1723796464769,10.46549,144.33,144.24,30.34]
[1723796465069,10.46549,144.33,144.22,42.63339]
[1723796465070,10.46549,144.33,144.27,20.0]
[1723796465381,10.46549,144.33,144.28,20.0]
[1723796465672,10.46549,144.33,144.27,20.0]
[1723796465873,10.46549,144.33,144.28,20.0]
[1723796466173,10.46549,144.33,144.24,40.0]
[1723796466397,10.46549,144.33,144.28,20.0]
[1723796467061,10.46549,144.33,144.24,20.0]
[1723796467062,10.46549,144.33,144.25,20.0]
[1723796468986,0.12549,144.33,144.24,40.0]
[1723796469184,10.34,144.32,144.27,20.0]
[1723796469909,10.34,144.32,144.24,40.0]
[1723796470206,10.34,144.32,144.28,20.0]
[1723796471176,10.34,144.32,144.27,20.0]
[1723796471397,10.34,144.32,144.28,20.0]
[1723796472582,10.34,144.32,144.24,40.0]
[1723796472783,10.34,144.32,144.24,20.0]
[1723796472979,0.12549,144.31,144.24,20.0]
[1723796478614,7.18048,144.31,144.24,20.0]
[1723796478820,10.34,144.3,144.22,22.16170291]
[1723796479007,10.34,144.3,144.23,20.0]
[1723796479183,0.12549,144.29,144.22,15.9476]
[1723796480217,0.12549,144.29,144.23,20.0]
[1723796480688,13.21699,144.31,144.23,20.0]
[1723796481887,13.21699,144.31,144.22,15.9476]
[1723796481888,6.1618,144.31,144.25,20.0]
[1723796482288,6.1618,144.31,144.23,20.0]
[1723796482709,0.25098,144.3,144.23,20.0]
[1723796483092,0.25098,144.3,144.25,20.0]
[1723796483487,13.0913,144.31,144.25,20.0]
[1723796483726,6.1618,144.31,144.27,20.0]
[1723796484209,6.1618,144.31,144.25,20.0]
[1723796484790,13.0917,144.31,144.26,20.0]
[1723796485183,6.1618,144.31,144.26,20.0]
[1723796485601,6.1618,144.31,144.27,20.0]
[1723796486404,6.1618,144.31,144.22,35.9476]
[1723796486405,6.1618,144.31,144.24,20.0]
[1723796486606,13.0914,144.31,144.24,20.0]
[1723796487020,13.0914,144.31,144.26,20.0]
[1723796487321,0.12549,144.3,144.23,20.0]
[1723796488915,0.25098,144.3,144.23,20.0]
[1723796489712,0.12549,144.3,144.23,20.0]
[1723796491201,6.1618,144.31,144.26,20.0]
[1723796491393,6.1618,144.31,144.23,20.0]
[1723796491797,6.1618,144.31,144.25,20.0]
[1723796492200,6.1618,144.31,144.23,20.0]
[1723796494598,0.12549,144.3,144.23,20.0]
[1723796495093,0.25098,144.3,144.22,15.9476]
[1723796495294,10.59098,144.3,144.22,15.9476]
[1723796495602,10.59098,144.3,144.23,20.0]
[1723796495995,10.59098,144.3,144.21,20.0]
[1723796496244,0.12549,144.27,144.21,20.0]
[1723796496523,16.19148,144.27,144.19,20.0]
[1723796496695,16.19148,144.27,144.2,20.0]
[1723796496904,23.12288,144.27,144.19,20.0]
[1723796497210,23.12288,144.27,144.2,20.0]
[1723796497802,16.19148,144.27,144.2,20.0]
[1723796498195,23.12308,144.27,144.2,20.0]
[1723796498614,16.19148,144.27,144.2,20.0]
[1723796499606,16.19148,144.27,144.22,20.0]
[1723796499799,15.9405,144.27,144.21,20.0]
[1723796500004,15.9405,144.27,144.22,20.0]
[1723796500208,15.9405,144.27,144.25,20.0]
[1723796500411,15.9405,144.27,144.22,20.0]
[1723796501830,15.9405,144.27,144.2,30.34]
[1723796502340,15.9405,144.27,144.24,20.0]
[1723796502506,15.9405,144.27,144.22,20.0]
[1723796502706,15.9405,144.27,144.21,20.0]
[1723796503712,15.9405,144.27,144.25,20.0]
[1723796504229,15.9405,144.27,144.21,20.0]
[1723796509221,15.9405,144.27,144.24,20.0]
[1723796509431,15.9405,144.27,144.21,20.0]
[1723796509744,15.9405,144.27,144.24,20.0]
[1723796509913,15.9405,144.27,144.22,20.0]
[1723796510112,15.9405,144.27,144.25,20.0]
[1723796510543,15.9405,144.27,144.24,20.0]
[1723796510734,15.89399,144.3,144.26,20.0]
[1723796510918,20.0,144.29,144.26,20.0]
[1723796511118,15.89399,144.3,144.26,20.0]
[1723796512245,22.82409,144.3,144.24,20.0]
[1723796513016,15.7685,144.3,144.26,20.0]
[1723796513237,15.7685,144.3,144.24,20.0]
[1723796513952,22.6985,144.3,144.22,20.0]
[1723796516741,0.12549,144.29,144.22,20.0]
[1723796517535,0.12549,144.29,144.24,20.0]
[1723796518040,15.7685,144.3,144.22,20.0]
[1723796518259,7.05629,144.29,144.22,20.0]
[1723796518466,7.18178,144.29,144.2,20.0]
[1723796518636,7.18178,144.29,144.22,20.0]
[1723796519267,7.18178,144.29,144.2,20.0]
[1723796519860,0.12549,144.27,144.2,20.0]
[1723796520169,0.25098,144.27,144.22,20.0]
[1723796521047,0.25098,144.27,144.2,20.0]
[1723796521252,0.25098,144.27,144.18,43.17479427]
[1723796521557,15.5369,144.24,144.18,27.06939427]
[1723796521796,15.5369,144.24,144.18,20.8540329]
[1723796522070,0.25098,144.23,144.18,0.8540329]
[1723796522440,0.12549,144.23,144.2,20.0]
[1723796522649,15.5369,144.24,144.18,20.8540329]
[1723796522970,15.5369,144.24,144.2,20.0]
[1723796523137,15.5369,144.24,144.22,20.0]
[1723796523338,6.2613,144.26,144.22,20.0]
[1723796523540,15.463,144.28,144.24,20.0]
[1723796524380,15.463,144.28,144.26,20.0]
[1723796524743,15.463,144.28,144.24,20.0]
[1723796524960,15.463,144.28,144.25,20.0]
[1723796525568,6.2729,144.3,144.26,20.0]
[1723796525818,16.0984,144.32,144.28,20.0]
[1723796526766,16.0984,144.32,144.26,30.34]
[1723796527145,16.0984,144.32,144.29,20.0]
[1723796527351,16.0984,144.32,144.27,20.0]
[1723796527569,16.0984,144.32,144.29,20.0]
[1723796527768,16.0984,144.32,144.26,10.34]
[1723796527769,16.0984,144.32,144.3,20.0]
[1723796528382,16.0984,144.32,144.26,30.34]
[1723796528383,16.0984,144.32,144.28,20.0]
[1723796529455,16.0984,144.32,144.3,20.0]
[1723796530186,6.5989,144.34,144.3,20.0]
[1723796530406,6.5989,144.34,144.27,20.0]
[1723796530689,6.5989,144.34,144.26,10.34]
[1723796530690,6.5989,144.34,144.3,20.0]
[1723796530894,6.5989,144.34,144.28,20.0]
[1723796531764,6.5989,144.34,144.24,20.0]
[1723796531765,10.34,144.32,144.24,20.0]
[1723796531986,10.34,144.32,144.25,20.0]
[1723796531987,0.12549,144.31,144.25,20.0]
[1723796532197,10.34,144.32,144.25,20.0]
[1723796532766,0.12549,144.31,144.28,20.0]
[1723796532994,10.34,144.32,144.26,20.0]
[1723796533367,10.34,144.32,144.28,20.0]
[1723796533583,10.34,144.32,144.29,20.0]
[1723796533767,10.34,144.32,144.28,20.0]
[1723796534367,0.12549,144.33,144.28,20.0]
[1723796534581,20.12549,144.33,144.3,20.0]
[1723796534786,20.12549,144.33,144.27,20.0]
[1723796535000,20.12549,144.33,144.29,20.0]
[1723796535176,6.5989,144.34,144.31,20.0]
[1723796535366,6.5989,144.34,144.29,20.0]
[1723796535565,6.5989,144.34,144.31,20.0]
[1723796535778,6.5989,144.34,144.29,20.0]
[1723796538101,13.527,144.34,144.29,20.0]
[1723796538300,13.527,144.34,144.27,20.0]
[1723796538601,13.527,144.34,144.25,20.0]
[1723796538602,17.2688,144.33,144.25,20.0]
[1723796538775,0.12549,144.32,144.25,20.0]
[1723796539102,17.39429,144.33,144.25,20.0]
[1723796539502,7.05429,144.33,144.26,20.0]
[1723796539709,10.34,144.31,144.24,20.0]
[1723796539872,10.34,144.31,144.23,20.0]
[1723796539873,7.05559,144.3,144.23,20.0]
[1723796540178,7.05559,144.3,144.24,20.0]
[1723796540179,15.7428,144.29,144.24,20.0]
[1723796541995,22.6733,144.29,144.22,20.0]
[1723796542309,0.12549,144.28,144.22,20.0]
[1723796542487,0.12549,144.28,144.24,20.0]
[1723796545206,33.0133,144.29,144.24,20.0]
[1723796545207,26.0828,144.29,144.24,20.0]
[1723796545397,15.7428,144.29,144.24,20.0]
[1723796545729,15.7428,144.29,144.26,20.0]
[1723796547393,15.7428,144.29,144.24,20.0]
[1723796547809,22.6734,144.29,144.24,20.0]
[1723796548021,6.69689,144.28,144.21,20.0]
[1723796548488,6.69689,144.28,144.24,20.0]
[1723796548696,6.69689,144.28,144.22,20.0]
[1723796548910,13.62789,144.28,144.21,20.0]
[1723796549093,13.62789,144.28,144.24,20.0]
[1723796549784,13.62789,144.28,144.22,20.0]
[1723796549927,7.05689,144.27,144.19,30.34]
[1723796550209,0.12549,144.26,144.21,20.0]
[1723796551989,7.05759,144.26,144.19,20.0]
[1723796552390,7.05789,144.25,144.19,20.0]
[1723796552613,0.12549,144.24,144.19,20.0]
[1723796554403,0.25098,144.25,144.19,20.0]
[1723796554610,0.12549,144.25,144.21,20.0]
[1723796555312,6.9315,144.27,144.21,20.0]
[1723796555490,17.2715,144.27,144.21,20.0]
[1723796555693,13.5025,144.28,144.23,20.0]
[1723796555913,20.0,144.27,144.23,20.0]
[1723796556097,15.4187,144.26,144.21,20.0]
[1723796556296,15.4187,144.26,144.18,0.8540329]
[1723796556297,22.3506,144.26,144.18,20.8540329]
[1723796556492,15.4187,144.26,144.22,20.0]
[1723796556692,15.4187,144.26,144.2,20.0]
[1723796556895,0.12549,144.25,144.2,20.0]
[1723796557222,15.4187,144.26,144.22,20.0]
[1723796557422,15.4187,144.26,144.23,20.0]
[1723796558294,15.4187,144.26,144.21,20.0]
[1723796558489,15.4187,144.26,144.24,20.0]
[1723796559297,15.4187,144.26,144.21,20.0]
[1723796559501,15.4187,144.26,144.2,20.0]
[1723796560040,15.4187,144.26,144.19,30.34]
[1723796560251,15.4187,144.26,144.19,10.34]
[1723796560742,15.4187,144.26,144.23,20.0]
[1723796560952,15.4187,144.26,144.21,20.0]
[1723796561253,15.4187,144.26,144.23,20.0]
[1723796561656,15.4187,144.26,144.19,30.34]
[1723796562023,0.12549,144.25,144.19,10.34]
[1723796562235,0.25098,144.25,144.19,20.0]
[1723796562438,0.12549,144.25,144.21,20.0]
[1723796562671,15.4187,144.26,144.21,20.0]
[1723796563021,15.4187,144.26,144.19,20.0]
[1723796563225,22.3506,144.26,144.19,20.0]
[1723796563521,22.3506,144.26,144.21,20.0]
[1723796563837,22.3506,144.26,144.19,30.34]
[1723796564157,15.4187,144.26,144.21,20.0]
[1723796564721,15.4187,144.26,144.23,20.0]
[1723796565345,15.4187,144.26,144.2,20.0]
[1723796566543,15.4187,144.26,144.21,20.0]
[1723796567050,15.4187,144.26,144.24,20.0]
[1723796567348,6.5714,144.28,144.24,20.0]
[1723796567537,6.5714,144.28,144.23,30.34]
[1723796567751,6.5714,144.28,144.26,20.0]
[1723796568128,6.5714,144.28,144.24,20.0]
[1723796568751,6.5714,144.28,144.26,20.0]
[1723796568957,6.5714,144.28,144.24,20.0]
[1723796569341,6.5714,144.28,144.19,15.9517]
[1723796569342,6.5714,144.28,144.22,20.0]
[1723796569544,0.12549,144.27,144.22,20.0]
[1723796570138,0.12549,144.27,144.19,15.9517]
[1723796570139,0.12549,144.27,144.2,20.0]
[1723796571361,25.9828,144.26,144.2,20.0]
[1723796571557,0.12549,144.25,144.2,20.0]
[1723796572062,0.25098,144.25,144.18,0.8540329]
[1723796573166,7.18338,144.25,144.2,20.0]
[1723796573347,7.18338,144.25,144.18,20.8540329]
[1723796573835,7.18338,144.25,144.2,20.0]
[1723796576281,21.3064,144.38,144.21,42.115]
[1723796576446,21.3064,144.38,144.27,20.0]
[1723796576848,21.3064,144.38,144.3,6.9299]
[1723796577472,6.9267,144.37,144.31,6.9294]
[1723796577694,17.2667,144.37,144.31,6.9294]
[1723796578584,21.3064,144.38,144.35,6.9275]
[1723796578760,1.20727987,144.42,144.38,20.0]
[1723796579005,1.20727987,144.42,144.35,0.12549]
[1723796579006,19.363613,144.43,144.41,6.9247]
[1723796579164,6.1789,144.46,144.41,6.9247]
[1723796579886,6.1789,144.46,144.42,6.924]
[1723796580189,6.1789,144.46,144.43,6.9236]
[1723796581894,0.12549,144.45,144.43,6.9236]
[1723796582845,0.25098,144.45,144.43,6.9236]
[1723796583188,0.12549,144.44,144.37,20.0]
[1723796583357,0.12549,144.43,144.37,20.0]
[1723796583552,0.25098,144.43,144.39,20.0]
[1723796584048,0.25098,144.43,144.35,20.0]
[1723796584263,0.25098,144.43,144.37,20.0]
[1723796585049,0.25098,144.43,144.41,6.9246]
[1723796585266,0.25098,144.43,144.4,6.925]
[1723796586901,7.17488,144.43,144.33,25.81]
[1723796587203,0.12549,144.41,144.32,20.0]
[1723796587406,0.25098,144.41,144.31,20.0]
[1723796587609,0.25098,144.41,144.32,20.0]
[1723796588106,0.25098,144.41,144.37,6.9263]
[1723796588714,0.25098,144.41,144.38,6.926]
[1723796590906,0.25098,144.41,144.37,6.9265]
[1723796591619,26.92616,144.42,144.37,6.9265]
[1723796591790,26.9242,144.42,144.37,6.9265]
[1723796592230,26.9242,144.42,144.38,6.9261]
[1723796592526,20.0,144.42,144.38,6.9261]
[1723796593602,0.12549,144.41,144.38,6.9261]
[1723796593819,0.37647,144.41,144.38,6.9261]
[1723796594135,0.12549,144.41,144.39,6.9256]
[1723796594327,0.12549,144.41,144.38,6.926]
[1723796595024,0.12549,144.41,144.39,6.9256]
[1723796595530,0.25098,144.42,144.38,6.926]
[1723796595829,0.12549,144.41,144.38,6.926]
[1723796596331,0.25098,144.42,144.38,6.926]
[1723796596533,0.25098,144.42,144.33,20.0]
[1723796596735,0.12549,144.4,144.3,41.3707]
[1723796596889,0.12549,144.38,144.34,6.928]
[1723796597095,0.37647,144.38,144.34,6.928]
[1723796601352,0.12549,144.38,144.3,45.81]
[1723796601726,0.12549,144.38,144.32,20.0]
[1723796601947,0.12549,144.38,144.3,20.0]
[1723796602464,0.12549,144.38,144.32,20.0]